[Event "Elite Hotels Open 2023"]
[Site "Elite Stadshotellet, Kungsgatan 6, Vaxjo, Sweden"]
[Date "2023.02.10"]
[Round "2.6"]
[White "Dingertz, Erik"]
[Black "Kucuksari, Kaan"]
[Result "0-1"]
[TimeControl "15 minutes + 5 seconds per move from move one (Round 1 - 4) / 90 minutes + 30 seconds per move from move one (Round 5 - 8)"]
[BlackTitle "IM"]
[WhiteFideId "1741578"]
[BlackFideId "6380166"]
[WhiteElo "2017"]
[BlackElo "2507"]

1. c4 {[%clk 00:15:08]} {[%emt 00:00:02]} c5 {[%clk 00:15:08]} {[%emt
00:00:02]} 2. g3 {[%clk 00:15:11]} {[%emt 00:00:03]} Nc6 {[%clk 00:15:12]}
{[%emt 00:00:01]} 3. Bg2 {[%clk 00:15:15]} {[%emt 00:00:01]} g6 {[%clk
00:15:16]} 4. Nc3 {[%clk 00:15:19]} {[%emt 00:00:02]} Bg7 {[%clk 00:15:19]}
{[%emt 00:00:01]} 5. a3 {[%clk 00:15:22]} {[%emt 00:00:01]} a5 {[%clk
00:15:16]} {[%emt 00:00:09]} 6. e3 {[%clk 00:15:23]} {[%emt 00:00:04]} e5
{[%clk 00:15:18]} {[%emt 00:00:03]} 7. Nge2 {[%clk 00:15:23]} {[%emt 00:00:05]}
Nge7 {[%clk 00:15:22]} 8. O-O {[%clk 00:15:15]} {[%emt 00:00:13]} O-O {[%clk
00:15:24]} {[%emt 00:00:02]} 9. b3 {[%clk 00:15:04]} {[%emt 00:00:16]} f5
{[%clk 00:15:14]} {[%emt 00:00:16]} 10. Bb2 {[%clk 00:14:58]} {[%emt 00:00:11]}
d6 {[%clk 00:15:06]} {[%emt 00:00:13]} 11. Nb5 {[%clk 00:14:35]} {[%emt
00:00:28]} Be6 {[%clk 00:14:32]} {[%emt 00:00:39]} 12. d4 {[%clk 00:14:33]}
{[%emt 00:00:06]} cxd4 {[%clk 00:14:18]} {[%emt 00:00:20]} 13. exd4 {[%clk
00:14:34]} {[%emt 00:00:05]} e4 {[%clk 00:14:22]} {[%emt 00:00:01]} 14. Qd2
{[%clk 00:13:11]} {[%emt 00:01:27]} Bf7 {[%clk 00:14:09]} {[%emt 00:00:17]} 15.
f3 {[%clk 00:10:02]} {[%emt 00:03:14]} exf3 {[%clk 00:13:50]} {[%emt 00:00:25]}
16. Bxf3 {[%clk 00:10:06]} {[%emt 00:00:01]} a4 {[%clk 00:13:53]} {[%emt
00:00:02]} 17. d5 {[%clk 00:09:32]} {[%emt 00:00:39]} Ne5 {[%clk 00:13:54]}
{[%emt 00:00:03]} 18. Ned4 {[%clk 00:08:27]} {[%emt 00:01:12]} axb3 {[%clk
00:13:53]} {[%emt 00:00:05]} 19. Qb4 {[%clk 00:08:27]} {[%emt 00:00:05]} Nd3
{[%clk 00:12:32]} {[%emt 00:01:26]} 20. Qxb3 {[%clk 00:08:31]} {[%emt
00:00:01]} Nxb2 21. Qxb2 {[%clk 00:08:35]} f4 {[%clk 00:12:36]} {[%emt
00:00:03]} 22. Bg4 {[%clk 00:07:53]} {[%emt 00:00:46]} fxg3 {[%clk 00:10:02]}
{[%emt 00:02:39]} 23. hxg3 {[%clk 00:07:56]} {[%emt 00:00:02]} Nf5 {[%clk
00:10:05]} {[%emt 00:00:02]} 24. Bxf5 {[%clk 00:07:39]} {[%emt 00:00:22]} gxf5
{[%clk 00:10:08]} {[%emt 00:00:01]} 25. Rxf5 {[%clk 00:07:36]} {[%emt
00:00:08]} Bg6 {[%clk 00:10:04]} {[%emt 00:00:09]} 26. Rxf8+ {[%clk 00:07:20]}
{[%emt 00:00:21]} Qxf8 {[%clk 00:10:07]} {[%emt 00:00:03]} 27. Rf1 {[%clk
00:07:24]} {[%emt 00:00:01]} Qe7 {[%clk 00:10:05]} {[%emt 00:00:06]} 28. Qd2
{[%clk 00:06:25]} {[%emt 00:01:04]} Rc8 {[%clk 00:08:58]} {[%emt 00:01:13]} 29.
Re1 {[%clk 00:05:49]} {[%emt 00:00:40]} Qd7 {[%clk 00:08:06]} {[%emt 00:00:58]}
30. Re6 {[%clk 00:02:46]} {[%emt 00:03:07]} Rxc4 {[%clk 00:08:01]} {[%emt
00:00:11]} 31. Rxd6 {[%clk 00:02:47]} {[%emt 00:00:04]} Rxd4 {[%clk 00:03:33]}
{[%emt 00:04:32]} 32. Qg5 {[%clk 00:01:15]} {[%emt 00:01:37]} Qxb5 {[%clk
00:03:03]} {[%emt 00:00:36]} 33. Rd8+ {[%clk 00:00:52]} {[%emt 00:00:28]} Be8
{[%clk 00:03:04]} {[%emt 00:00:04]} 34. Qe7 {[%clk 00:00:26]} {[%emt 00:00:30]}
Rd1+ {[%clk 00:02:53]} {[%emt 00:00:16]} 35. Kf2 {[%clk 00:00:25]} {[%emt
00:00:07]} Qf1+ {[%clk 00:02:53]} {[%emt 00:00:05]} 36. Ke3 {[%clk 00:00:27]}
{[%emt 00:00:02]} Re1+ {[%clk 00:02:54]} 0-1

[Event "Elite Hotels Open 2023"]
[Site "Elite Stadshotellet, Kungsgatan 6, Vaxjo, Sweden"]
[Date "2023.02.10"]
[Round "2.7"]
[White "Hector, Jonny"]
[Black "Karlsson, Jorgen"]
[Result "1-0"]
[TimeControl "15 minutes + 5 seconds per move from move one (Round 1 - 4) / 90 minutes + 30 seconds per move from move one (Round 5 - 8)"]
[WhiteTitle "GM"]
[WhiteFideId "1700090"]
[BlackFideId "1711679"]
[WhiteElo "2466"]
[BlackElo "1987"]

1. e4 {[%clk 00:14:55]} {[%emt 00:00:10]} g6 {[%clk 00:15:08]} {[%emt
00:00:07]} 2. d4 {[%clk 00:14:56]} {[%emt 00:00:03]} Bg7 {[%clk 00:15:11]}
{[%emt 00:00:02]} 3. Nc3 {[%clk 00:14:59]} {[%emt 00:00:01]} d6 {[%clk
00:15:12]} {[%emt 00:00:05]} 4. f4 {[%clk 00:15:00]} {[%emt 00:00:03]} e6
{[%clk 00:15:01]} {[%emt 00:00:16]} 5. Nf3 {[%clk 00:14:59]} {[%emt 00:00:05]}
Ne7 {[%clk 00:15:02]} {[%emt 00:00:05]} 6. Bd3 {[%clk 00:14:59]} {[%emt
00:00:05]} a6 {[%clk 00:14:51]} {[%emt 00:00:17]} 7. O-O {[%clk 00:14:54]}
{[%emt 00:00:08]} Nbc6 {[%clk 00:14:37]} {[%emt 00:00:20]} 8. Be3 {[%clk
00:14:14]} {[%emt 00:00:45]} O-O {[%clk 00:14:12]} {[%emt 00:00:31]} 9. a3
{[%clk 00:14:03]} {[%emt 00:00:16]} f5 {[%clk 00:13:54]} {[%emt 00:00:22]} 10.
e5 {[%clk 00:13:42]} {[%emt 00:00:26]} b5 {[%clk 00:12:27]} {[%emt 00:01:32]}
11. a4 {[%clk 00:13:04]} {[%emt 00:00:43]} b4 {[%clk 00:12:19]} {[%emt
00:00:14]} 12. Ne2 {[%clk 00:13:06]} {[%emt 00:00:02]} a5 {[%clk 00:12:22]}
{[%emt 00:00:04]} 13. c4 {[%clk 00:12:30]} {[%emt 00:00:39]} bxc3 {[%clk
00:11:48]} {[%emt 00:00:39]} 14. Nxc3 {[%clk 00:12:08]} {[%emt 00:00:26]} Nb4
{[%clk 00:11:43]} {[%emt 00:00:11]} 15. Be2 {[%clk 00:11:25]} {[%emt 00:00:48]}
h6 {[%clk 00:11:31]} {[%emt 00:00:17]} 16. Rc1 {[%clk 00:10:57]} {[%emt
00:00:32]} Bb7 {[%clk 00:11:23]} {[%emt 00:00:13]} 17. Nb5 {[%clk 00:10:16]}
{[%emt 00:00:45]} Ned5 {[%clk 00:11:20]} {[%emt 00:00:09]} 18. Bd2 {[%clk
00:10:09]} {[%emt 00:00:12]} Qd7 {[%clk 00:10:37]} {[%emt 00:00:49]} 19. Qe1
{[%clk 00:09:47]} {[%emt 00:00:26]} Rfc8 {[%clk 00:10:20]} {[%emt 00:00:23]} 20.
Bc4 {[%clk 00:09:21]} {[%emt 00:00:30]} Nc6 {[%clk 00:06:26]} {[%emt 00:04:00]}
21. Bxd5 {[%clk 00:08:23]} {[%emt 00:01:02]} exd5 {[%clk 00:06:29]} {[%emt
00:00:03]} 22. e6 {[%clk 00:08:24]} {[%emt 00:00:04]} Qe7 {[%clk 00:06:26]}
{[%emt 00:00:08]} 23. Qe3 {[%clk 00:07:18]} {[%emt 00:01:10]} Nd8 {[%clk
00:06:18]} {[%emt 00:00:14]} 24. Rxc7 {[%clk 00:06:57]} {[%emt 00:00:25]} Rxc7
{[%clk 00:06:00]} {[%emt 00:00:24]} 25. Nxc7 {[%clk 00:07:00]} {[%emt
00:00:02]} Qxc7 {[%clk 00:05:46]} {[%emt 00:00:18]} 26. e7 {[%clk 00:07:01]}
{[%emt 00:00:03]} Bc6 {[%clk 00:05:32]} {[%emt 00:00:20]} 27. Rc1 {[%clk
00:06:37]} {[%emt 00:00:29]} Qd7 {[%clk 00:05:06]} {[%emt 00:00:32]} 28.
exd8=Q+ {[%clk 00:06:19]} {[%emt 00:00:22]} Rxd8 {[%clk 00:05:00]} {[%emt
00:00:12]} 29. b3 {[%clk 00:06:04]} {[%emt 00:00:19]} Ra8 {[%clk 00:04:39]}
{[%emt 00:00:27]} 30. Qc3 {[%clk 00:05:58]} {[%emt 00:00:10]} Ra6 {[%clk
00:04:31]} {[%emt 00:00:14]} 31. h3 {[%clk 00:05:21]} {[%emt 00:00:41]} Kf7
{[%clk 00:04:30]} {[%emt 00:00:07]} 32. Qd3 {[%clk 00:04:49]} {[%emt 00:00:36]}
Ra7 {[%clk 00:04:31]} {[%emt 00:00:05]} 33. Rc3 {[%clk 00:04:41]} {[%emt
00:00:13]} Bf6 {[%clk 00:04:07]} {[%emt 00:00:29]} 34. Qc2 {[%clk 00:04:42]}
{[%emt 00:00:04]} Ra6 {[%clk 00:03:57]} {[%emt 00:00:15]} 35. Kh2 {[%clk
00:04:42]} {[%emt 00:00:04]} Bd8 {[%clk 00:03:49]} {[%emt 00:00:14]} 36. Be1
{[%clk 00:04:43]} {[%emt 00:00:04]} Bb7 {[%clk 00:03:49]} {[%emt 00:00:05]} 37.
Bh4 {[%clk 00:04:27]} {[%emt 00:00:20]} Rc6 {[%clk 00:03:50]} {[%emt 00:00:05]}
38. Rxc6 {[%clk 00:04:26]} {[%emt 00:00:06]} 1-0

[Event "Elite Hotels Open 2023"]
[Site "Elite Stadshotellet, Kungsgatan 6, Vaxjo, Sweden"]
[Date "2023.02.10"]
[Round "2.8"]
[White "Alquist, Erik"]
[Black "Jepson, Christian"]
[Result "1/2-1/2"]
[TimeControl "15 minutes + 5 seconds per move from move one (Round 1 - 4) / 90 minutes + 30 seconds per move from move one (Round 5 - 8)"]
[BlackTitle "IM"]
[WhiteFideId "1707701"]
[BlackFideId "1701185"]
[WhiteElo "1994"]
[BlackElo "2395"]

1. e4 {[%clk 00:15:08]} d6 {[%clk 00:15:05]} {[%emt 00:00:06]} 2. d4 {[%clk
00:15:06]} {[%emt 00:00:06]} Nf6 {[%clk 00:15:08]} {[%emt 00:00:02]} 3. Nc3
{[%clk 00:15:07]} {[%emt 00:00:04]} Nbd7 {[%clk 00:15:10]} {[%emt 00:00:03]} 4.
g3 {[%clk 00:14:33]} {[%emt 00:00:39]} e5 {[%clk 00:14:53]} {[%emt 00:00:23]} 5.
Nge2 {[%clk 00:14:32]} {[%emt 00:00:06]} c6 {[%clk 00:14:14]} {[%emt 00:00:44]}
6. Bg2 {[%clk 00:14:34]} {[%emt 00:00:02]} b5 {[%clk 00:14:13]} {[%emt
00:00:06]} 7. d5 {[%clk 00:13:52]} {[%emt 00:00:48]} cxd5 {[%clk 00:13:52]}
{[%emt 00:00:27]} 8. Nxd5 {[%clk 00:13:35]} {[%emt 00:00:21]} Nxd5 {[%clk
00:12:28]} {[%emt 00:01:28]} 9. Qxd5 {[%clk 00:13:35]} {[%emt 00:00:06]} Rb8
{[%clk 00:12:30]} {[%emt 00:00:03]} 10. O-O {[%clk 00:13:09]} {[%emt 00:00:30]}
Be7 {[%clk 00:12:02]} {[%emt 00:00:34]} 11. Be3 {[%clk 00:12:55]} {[%emt
00:00:19]} a6 {[%clk 00:11:42]} {[%emt 00:00:25]} 12. Qd2 {[%clk 00:12:02]}
{[%emt 00:00:58]} Nf6 {[%clk 00:10:22]} {[%emt 00:01:25]} 13. Bg5 {[%clk
00:11:55]} {[%emt 00:00:11]} Be6 {[%clk 00:08:28]} {[%emt 00:02:00]} 14. Bxf6
{[%clk 00:11:39]} {[%emt 00:00:22]} gxf6 {[%clk 00:07:38]} {[%emt 00:00:54]} 15.
Nc3 {[%clk 00:11:39]} {[%emt 00:00:05]} h5 {[%clk 00:07:32]} {[%emt 00:00:12]}
16. h4 {[%clk 00:11:29]} {[%emt 00:00:15]} f5 {[%clk 00:06:54]} {[%emt
00:00:42]} 17. exf5 {[%clk 00:11:20]} {[%emt 00:00:14]} Bxf5 {[%clk 00:06:55]}
{[%emt 00:00:04]} 18. Nd5 {[%clk 00:11:06]} {[%emt 00:00:18]} Rg8 {[%clk
00:05:01]} {[%emt 00:02:00]} 19. Rad1 {[%clk 00:10:30]} {[%emt 00:00:41]} Rg6
{[%clk 00:03:52]} {[%emt 00:01:14]} 20. Ne3 {[%clk 00:09:26]} {[%emt 00:01:08]}
Be6 {[%clk 00:03:56]} {[%emt 00:00:02]} 21. Qe2 {[%clk 00:07:55]} {[%emt
00:01:36]} Rh6 {[%clk 00:02:44]} {[%emt 00:01:17]} 22. Be4 {[%clk 00:07:36]}
{[%emt 00:00:24]} Qc8 {[%clk 00:02:24]} {[%emt 00:00:26]} 23. Qf3 {[%clk
00:06:47]} {[%emt 00:00:53]} Kf8 {[%clk 00:01:48]} {[%emt 00:00:42]} 24. Rfe1
{[%clk 00:06:00]} {[%emt 00:00:50]} Kg8 {[%clk 00:01:22]} {[%emt 00:00:31]} 25.
Nf5 {[%clk 00:05:41]} {[%emt 00:00:24]} Bxf5 {[%clk 00:01:18]} {[%emt
00:00:09]} 26. Bxf5 {[%clk 00:05:29]} {[%emt 00:00:17]} Qc7 {[%clk 00:01:05]}
{[%emt 00:00:18]} 27. Qe3 {[%clk 00:04:29]} {[%emt 00:01:06]} Rh8 {[%clk
00:01:06]} {[%emt 00:00:04]} 28. f4 {[%clk 00:04:07]} {[%emt 00:00:27]} Bf6
{[%clk 00:00:50]} {[%emt 00:00:22]} 29. Rd5 {[%clk 00:03:45]} {[%emt 00:00:26]}
Qb6 {[%clk 00:00:38]} {[%emt 00:00:17]} 30. Qxb6 {[%clk 00:02:36]} {[%emt
00:01:13]} Rxb6 {[%clk 00:00:42]} {[%emt 00:00:02]} 31. Red1 {[%clk 00:02:32]}
{[%emt 00:00:08]} exf4 {[%clk 00:00:35]} {[%emt 00:00:14]} 32. Rxd6 {[%clk
00:02:25]} {[%emt 00:00:11]} Rxd6 {[%clk 00:00:37]} 33. Rxd6 {[%clk 00:02:29]}
Bxb2 {[%clk 00:00:41]} {[%emt 00:00:02]} 34. gxf4 {[%clk 00:02:23]} {[%emt
00:00:11]} a5 {[%clk 00:00:29]} {[%emt 00:00:17]} 35. Ra6 {[%clk 00:02:08]}
{[%emt 00:00:20]} Bc3 {[%clk 00:00:30]} {[%emt 00:00:04]} 36. Bd3 {[%clk
00:01:54]} {[%emt 00:00:18]} b4 {[%clk 00:00:31]} {[%emt 00:00:05]} 37. Rxa5
{[%clk 00:01:39]} {[%emt 00:00:20]} Kg7 {[%clk 00:00:22]} {[%emt 00:00:14]} 38.
Rg5+ {[%clk 00:01:35]} {[%emt 00:00:08]} Kf6 {[%clk 00:00:24]} {[%emt
00:00:04]} 39. Kf2 {[%clk 00:01:32]} {[%emt 00:00:08]} Ra8 {[%clk 00:00:25]}
{[%emt 00:00:05]} 40. Bc4 {[%clk 00:01:29]} {[%emt 00:00:07]} Rd8 {[%clk
00:00:21]} {[%emt 00:00:09]} 41. Bb3 {[%clk 00:01:26]} {[%emt 00:00:08]} Rd2+
{[%clk 00:00:24]} {[%emt 00:00:03]} 42. Ke3 {[%clk 00:01:23]} {[%emt 00:00:07]}
Rh2 {[%clk 00:00:27]} {[%emt 00:00:02]} 43. Rxh5 {[%clk 00:01:26]} {[%emt
00:00:02]} Bd2+ {[%clk 00:00:31]} {[%emt 00:00:01]} 44. Kf3 {[%clk 00:01:22]}
{[%emt 00:00:09]} Rh3+ {[%clk 00:00:25]} {[%emt 00:00:10]} 45. Kg4 {[%clk
00:01:19]} {[%emt 00:00:09]} Rh1 {[%clk 00:00:26]} {[%emt 00:00:04]} 46. Rh7
{[%clk 00:01:19]} {[%emt 00:00:05]} Rg1+ {[%clk 00:00:28]} {[%emt 00:00:04]} 47.
Kf3 {[%clk 00:01:17]} {[%emt 00:00:06]} Kg6 {[%clk 00:00:25]} {[%emt 00:00:09]}
48. Rxf7 {[%clk 00:01:15]} {[%emt 00:00:05]} Rh1 {[%clk 00:00:28]} {[%emt
00:00:02]} 49. f5+ {[%clk 00:01:06]} {[%emt 00:00:15]} Kh6 {[%clk 00:00:32]}
{[%emt 00:00:02]} 50. Rf8 {[%clk 00:00:54]} {[%emt 00:00:16]} Bc3 {[%clk
00:00:31]} {[%emt 00:00:06]} 51. Kg4 {[%clk 00:00:47]} {[%emt 00:00:12]} Rg1+
{[%clk 00:00:35]} {[%emt 00:00:01]} 52. Kf3 {[%clk 00:00:40]} {[%emt 00:00:12]}
Rh1 {[%clk 00:00:37]} {[%emt 00:00:03]} 53. f6 {[%clk 00:00:38]} {[%emt
00:00:07]} Rf1+ {[%clk 00:00:41]} {[%emt 00:00:02]} 54. Kg4 {[%clk 00:00:36]}
{[%emt 00:00:06]} Rxf6 55. Rxf6+ {[%clk 00:00:39]} Bxf6 {[%clk 00:00:49]}
{[%emt 00:00:01]} 56. h5 {[%clk 00:00:41]} {[%emt 00:00:04]} Be7 {[%clk
00:00:52]} {[%emt 00:00:02]} 57. Bf7 {[%clk 00:00:44]} {[%emt 00:00:01]} Bf8
{[%clk 00:00:55]} {[%emt 00:00:03]} 58. Kf5 {[%clk 00:00:47]} Kg7 {[%clk
00:00:58]} {[%emt 00:00:02]} 59. Bg6 {[%clk 00:00:51]} {[%emt 00:00:01]} Be7
{[%clk 00:01:01]} {[%emt 00:00:03]} 60. Ke4 {[%clk 00:00:55]} Bh4 {[%clk
00:01:02]} {[%emt 00:00:03]} 61. Kd3 {[%clk 00:00:57]} {[%emt 00:00:03]} Be1
{[%clk 00:01:06]} {[%emt 00:00:01]} 62. Kc4 {[%clk 00:01:01]} {[%emt 00:00:01]}
Kh6 {[%clk 00:01:09]} {[%emt 00:00:02]} 63. Kb3 {[%clk 00:01:02]} {[%emt
00:00:03]} Kg7 {[%clk 00:01:13]} {[%emt 00:00:02]} 64. a3 {[%clk 00:01:06]}
{[%emt 00:00:02]} bxa3 {[%clk 00:01:16]} {[%emt 00:00:01]} 65. Kxa3 {[%clk
00:01:10]} {[%emt 00:00:02]} Bc3 {[%clk 00:01:19]} {[%emt 00:00:02]} 66. Kb3
{[%clk 00:01:13]} Bd4 {[%clk 00:01:23]} {[%emt 00:00:01]} 67. Kc4 {[%clk
00:01:17]} {[%emt 00:00:01]} Ba7 {[%clk 00:01:27]} {[%emt 00:00:01]} 68. Kd5
{[%clk 00:01:20]} {[%emt 00:00:02]} Kh6 {[%clk 00:01:31]} {[%emt 00:00:02]} 69.
c4 {[%clk 00:01:24]} Bg1 {[%clk 00:01:34]} 70. c5 {[%clk 00:01:28]} Bxc5 {[%clk
00:01:38]} {[%emt 00:00:02]} 71. Kxc5 {[%clk 00:01:32]} {[%emt 00:00:01]} Kg7
{[%clk 00:01:42]} {[%emt 00:00:01]} 72. Kd6 {[%clk 00:01:29]} {[%emt 00:00:08]}
Kh8 {[%clk 00:01:47]} 73. Ke7 {[%clk 00:01:33]} {[%emt 00:00:02]} Kg7 {[%clk
00:01:51]} {[%emt 00:00:01]} 74. Ke8 {[%clk 00:01:34]} {[%emt 00:00:03]} Kh8
{[%clk 00:01:55]} {[%emt 00:00:01]} 75. Kf8 {[%emt 00:00:29]} 1/2-1/2

[Event "Elite Hotels Open 2023"]
[Site "Elite Stadshotellet, Kungsgatan 6, Vaxjo, Sweden"]
[Date "2023.02.10"]
[Round "2.9"]
[White "Trost, Edvin"]
[Black "Zaritovskaja, Margo"]
[Result "1-0"]
[TimeControl "15 minutes + 5 seconds per move from move one (Round 1 - 4) / 90 minutes + 30 seconds per move from move one (Round 5 - 8)"]
[WhiteTitle "FM"]
[WhiteFideId "1729519"]
[BlackFideId "14149249"]
[WhiteElo "2364"]
[BlackElo "1973"]

1. e4 {[%clk 00:15:07]} {[%emt 00:00:02]} c5 {[%clk 00:15:09]} {[%emt
00:00:01]} 2. Nf3 {[%clk 00:15:10]} {[%emt 00:00:03]} d6 {[%clk 00:15:13]}
{[%emt 00:00:01]} 3. d4 {[%clk 00:15:08]} {[%emt 00:00:06]} cxd4 {[%clk
00:15:16]} {[%emt 00:00:02]} 4. Nxd4 {[%clk 00:15:12]} {[%emt 00:00:02]} Nf6
{[%clk 00:15:20]} {[%emt 00:00:01]} 5. Nc3 {[%clk 00:15:15]} {[%emt 00:00:01]}
a6 {[%clk 00:15:23]} {[%emt 00:00:02]} 6. f3 {[%clk 00:14:35]} {[%emt
00:00:44]} e6 {[%clk 00:15:17]} {[%emt 00:00:12]} 7. g4 {[%clk 00:14:16]}
{[%emt 00:00:23]} b5 {[%clk 00:14:50]} {[%emt 00:00:33]} 8. a3 {[%clk
00:13:33]} {[%emt 00:00:48]} Be7 {[%clk 00:14:33]} {[%emt 00:00:22]} 9. Be3
{[%clk 00:13:31]} {[%emt 00:00:07]} Qc7 {[%clk 00:14:15]} {[%emt 00:00:23]} 10.
Qd2 {[%clk 00:12:45]} {[%emt 00:00:51]} Bb7 {[%clk 00:13:41]} {[%emt 00:00:39]}
11. g5 {[%clk 00:10:15]} {[%emt 00:02:35]} Nfd7 {[%clk 00:13:40]} {[%emt
00:00:06]} 12. f4 {[%clk 00:10:14]} {[%emt 00:00:06]} Nc5 {[%clk 00:11:45]}
{[%emt 00:01:59]} 13. Bg2 {[%clk 00:10:17]} {[%emt 00:00:02]} Nbd7 {[%clk
00:09:42]} {[%emt 00:02:08]} 14. f5 {[%clk 00:06:03]} {[%emt 00:04:20]} e5
{[%clk 00:07:49]} {[%emt 00:01:58]} 15. Nde2 {[%clk 00:06:04]} {[%emt
00:00:04]} Nb6 {[%clk 00:07:26]} {[%emt 00:00:27]} 16. b3 {[%clk 00:06:07]}
{[%emt 00:00:02]} Rc8 {[%clk 00:05:33]} {[%emt 00:01:59]} 17. O-O {[%clk
00:05:59]} {[%emt 00:00:13]} f6 {[%clk 00:04:54]} {[%emt 00:00:44]} 18. h4
{[%clk 00:05:17]} {[%emt 00:00:46]} Bc6 {[%clk 00:03:22]} {[%emt 00:01:38]} 19.
Ng3 {[%clk 00:03:51]} {[%emt 00:01:31]} Qb7 {[%clk 00:02:56]} {[%emt 00:00:32]}
20. Rad1 {[%clk 00:02:30]} {[%emt 00:01:25]} Nbd7 {[%clk 00:02:12]} {[%emt
00:00:48]} 21. Nd5 {[%clk 00:02:15]} {[%emt 00:00:20]} Bxd5 {[%clk 00:02:12]}
{[%emt 00:00:06]} 22. exd5 {[%clk 00:02:17]} {[%emt 00:00:02]} Qc7 {[%clk
00:01:38]} {[%emt 00:00:40]} 23. Kh2 {[%clk 00:02:14]} {[%emt 00:00:07]} Nb7
{[%clk 00:01:15]} {[%emt 00:00:29]} 24. Rf2 {[%clk 00:02:11]} {[%emt 00:00:08]}
Ndc5 {[%clk 00:00:59]} {[%emt 00:00:22]} 25. Bf3 {[%clk 00:02:06]} {[%emt
00:00:09]} Rg8 {[%clk 00:00:58]} {[%emt 00:00:06]} 26. Rg1 {[%clk 00:02:08]}
{[%emt 00:00:03]} a5 {[%clk 00:00:49]} {[%emt 00:00:14]} 27. Rfg2 {[%clk
00:02:07]} {[%emt 00:00:06]} b4 {[%clk 00:00:26]} {[%emt 00:00:28]} 28. axb4
{[%clk 00:02:05]} {[%emt 00:00:07]} axb4 {[%clk 00:00:30]} {[%emt 00:00:01]} 29.
Nh5 {[%clk 00:02:01]} {[%emt 00:00:08]} fxg5 {[%clk 00:00:16]} {[%emt
00:00:19]} 30. Bxg5 {[%clk 00:01:15]} {[%emt 00:00:51]} Bxg5 {[%clk 00:00:07]}
{[%emt 00:00:15]} 31. Rxg5 {[%clk 00:01:13]} {[%emt 00:00:07]} 1-0

[Event "Elite Hotels Open 2023"]
[Site "Elite Stadshotellet, Kungsgatan 6, Vaxjo, Sweden"]
[Date "2023.02.10"]
[Round "2.10"]
[White "Slettebo, Jan"]
[Black "Golubka, Petro"]
[Result "0-1"]
[TimeControl "15 minutes + 5 seconds per move from move one (Round 1 - 4) / 90 minutes + 30 seconds per move from move one (Round 5 - 8)"]
[BlackTitle "GM"]
[WhiteFideId "1704958"]
[BlackFideId "14114224"]
[WhiteElo "1971"]
[BlackElo "2363"]

1. e4 {[%clk 00:15:07]} {[%emt 00:00:03]} b6 {[%clk 00:15:07]} {[%emt
00:00:04]} 2. d4 {[%clk 00:15:02]} {[%emt 00:00:09]} Bb7 {[%clk 00:15:10]}
{[%emt 00:00:03]} 3. Bd3 {[%clk 00:15:05]} {[%emt 00:00:02]} g6 {[%clk
00:15:11]} {[%emt 00:00:04]} 4. Nf3 {[%clk 00:15:05]} {[%emt 00:00:04]} Bg7
{[%clk 00:15:13]} {[%emt 00:00:04]} 5. O-O {[%clk 00:15:02]} {[%emt 00:00:08]}
d6 {[%clk 00:15:16]} {[%emt 00:00:03]} 6. c3 {[%clk 00:14:53]} {[%emt
00:00:13]} Nd7 {[%clk 00:15:16]} {[%emt 00:00:05]} 7. Re1 {[%clk 00:14:11]}
{[%emt 00:00:47]} e6 {[%clk 00:15:13]} {[%emt 00:00:08]} 8. Bg5 {[%clk
00:11:41]} {[%emt 00:02:34]} Ne7 {[%clk 00:15:11]} {[%emt 00:00:08]} 9. h4
{[%clk 00:11:13]} {[%emt 00:00:32]} h6 {[%clk 00:15:07]} {[%emt 00:00:10]} 10.
Bf4 {[%clk 00:11:16]} {[%emt 00:00:02]} g5 {[%clk 00:13:43]} {[%emt 00:01:29]}
11. hxg5 {[%clk 00:10:27]} {[%emt 00:00:53]} Ng6 {[%clk 00:13:41]} {[%emt
00:00:06]} 12. Qd2 {[%clk 00:10:24]} {[%emt 00:00:09]} e5 {[%clk 00:12:41]}
{[%emt 00:01:06]} 13. Be3 {[%clk 00:09:45]} {[%emt 00:00:42]} hxg5 {[%clk
00:12:38]} {[%emt 00:00:08]} 14. Bxg5 {[%clk 00:09:45]} {[%emt 00:00:05]} Bf6
{[%clk 00:12:35]} {[%emt 00:00:09]} 15. Bc4 {[%clk 00:08:21]} {[%emt 00:01:28]}
Qe7 {[%clk 00:12:28]} {[%emt 00:00:12]} 16. Bxf6 {[%clk 00:07:03]} {[%emt
00:01:23]} Nxf6 {[%clk 00:12:16]} {[%emt 00:00:17]} 17. Bb5+ {[%clk 00:03:22]}
{[%emt 00:03:46]} Kf8 {[%clk 00:12:03]} {[%emt 00:00:17]} 18. d5 {[%clk
00:02:05]} {[%emt 00:01:23]} Kg7 {[%clk 00:10:55]} {[%emt 00:01:13]} 19. g3
{[%clk 00:02:01]} {[%emt 00:00:10]} Rh6 {[%clk 00:10:16]} {[%emt 00:00:42]} 20.
Bf1 {[%clk 00:02:04]} {[%emt 00:00:04]} Qd7 {[%clk 00:09:54]} {[%emt 00:00:27]}
21. Bg2 {[%clk 00:02:05]} {[%emt 00:00:04]} Rah8 {[%clk 00:09:40]} {[%emt
00:00:19]} 22. c4 {[%clk 00:01:12]} {[%emt 00:00:58]} Nh5 {[%clk 00:09:11]}
{[%emt 00:00:34]} 23. Ng5 {[%clk 00:00:16]} {[%emt 00:01:01]} Qg4 {[%clk
00:08:20]} {[%emt 00:00:51]} 0-1